bitfinex/quotes_ETHUSD_20230102
["timestamp","ask_amount","ask_price","bid_price","bid_amount"]
[1672629986778,5.00226695,1198.4,1198.3,3.66614274]
[1672629987083,10.18398871,1198.4,1198.3,3.66614274]
[1672629988348,10.18383076,1198.4,1198.3,3.66614274]
[1672629989192,5.00226695,1198.4,1198.3,3.66614274]
[1672629989731,10.18386912,1198.4,1198.3,3.66614274]
[1672629991398,5.00226695,1198.4,1198.3,3.66614274]
[1672629991902,11.22103186,1198.4,1198.3,3.66614274]
[1672629995414,6.22103186,1198.4,1198.3,3.66614274]
[1672629996461,11.22103186,1198.4,1198.3,3.66614274]
[1672629996980,5.00226695,1198.4,1198.3,3.66614274]
[1672629997139,10.18605673,1198.4,1198.3,3.66614274]
[1672629997352,10.18405673,1198.4,1198.3,3.66614274]
[1672630001082,5.00226695,1198.4,1198.3,3.66614274]
[1672630001801,10.18351078,1198.4,1198.3,3.66614274]
[1672630002194,5.18351078,1198.4,1198.3,3.66614274]
[1672630003122,10.18351078,1198.4,1198.3,3.66614274]
[1672630003337,5.18351078,1198.4,1198.3,3.66614274]
[1672630005496,10.18351078,1198.4,1198.3,3.66614274]
[1672630005716,5.00226695,1198.4,1198.3,3.66614274]
[1672630006956,10.18306811,1198.4,1198.3,3.66614274]
[1672630007555,5.00226695,1198.4,1198.3,3.66614274]
[1672630008598,5.00226695,1198.4,1198.3,3.66326646]
[1672630009222,0.00226695,1198.4,1198.3,6.66326646]
[1672630009487,11.91810041,1198.5,1198.3,3.72926646]
[1672630009702,11.91810041,1198.5,1198.3,3.66326646]
[1672630010063,5.18080536,1198.4,1198.3,3.66326646]
[1672630010280,5.00226695,1198.4,1198.3,3.66326646]
[1672630011592,17.06790304,1198.4,1198.3,3.66326646]
[1672630011902,11.88056901,1198.4,1198.3,3.66326646]
[1672630012129,10.18255897,1198.4,1198.3,3.66326646]
[1672630012529,10.18255897,1198.4,1198.3,6.66326646]
[1672630012859,10.18255897,1198.4,1198.3,6.72926646]
[1672630013810,10.18255897,1198.4,1198.3,3.72926646]
[1672630014123,10.18255897,1198.4,1198.3,3.66326646]
[1672630020112,9.38612305,1198.4,1198.3,10.52267683]
[1672630020266,9.38612305,1198.4,1198.3,10.58867683]
[1672630020477,5.00226695,1198.4,1198.3,10.58867683]
[1672630020758,9.38612305,1198.4,1198.3,10.58867683]
[1672630020903,5.00226695,1198.4,1198.3,10.58867683]
[1672630021533,5.00226695,1198.4,1198.3,6.78932799]
[1672630022421,9.38612305,1198.4,1198.3,5.82726646]
[1672630022647,10.18255897,1198.4,1198.3,5.82726646]
[1672630023842,5.00226695,1198.4,1198.3,5.82726646]
[1672630024514,9.38606581,1198.4,1198.3,5.82726646]
[1672630027625,8.75876452,1198.4,1198.3,6.99912799]
[1672630027964,8.75876452,1198.4,1198.3,10.79847683]
[1672630028560,8.75876452,1198.4,1198.3,6.99912799]
[1672630028776,3.75876452,1198.4,1198.3,6.99912799]
[1672630028985,3.75649757,1198.4,1198.3,6.99912799]
[1672630032776,3.75649757,1198.4,1198.3,6.9967521]
[1672630035742,8.75649757,1198.4,1198.3,6.9967521]
[1672630035979,8.75876452,1198.4,1198.3,6.9967521]
[1672630041712,3.75876452,1198.4,1198.3,6.9967521]
[1672630041915,3.75649757,1198.4,1198.3,6.9967521]
[1672630042711,8.75649757,1198.4,1198.3,6.9967521]
[1672630042861,8.75876452,1198.4,1198.3,6.9967521]
[1672630048051,5.00226695,1198.4,1198.3,6.9967521]
[1672630048485,8.7564704,1198.4,1198.3,6.9967521]
[1672630048700,3.7564704,1198.4,1198.3,6.9967521]
[1672630048907,3.75420345,1198.4,1198.3,6.9967521]
[1672630049696,8.75458604,1198.4,1198.3,6.9967521]
[1672630049911,8.75699951,1198.4,1198.3,6.9967521]
[1672630051974,9.38606581,1198.4,1198.3,5.82489057]
[1672630054283,9.38606581,1198.4,1198.3,8.58054856]
[1672630054421,9.38606581,1198.4,1198.3,8.83293238]
[1672630054633,9.38606581,1198.4,1198.3,6.73493238]
[1672630055430,9.38606581,1198.4,1198.3,3.73493238]
[1672630055741,9.38222739,1198.4,1198.3,7.8028533]
[1672630055895,9.38222739,1198.4,1198.3,7.8688533]
[1672630056105,4.38606581,1198.4,1198.3,7.8688533]
[1672630056336,4.38379886,1198.4,1198.3,7.8688533]
[1672630056841,9.38379886,1198.4,1198.3,7.8688533]
[1672630057086,9.38606581,1198.4,1198.3,7.8688533]
[1672630062724,4.38606581,1198.4,1198.3,7.8688533]
[1672630062958,4.38379886,1198.4,1198.3,7.8688533]
[1672630063830,9.38379886,1198.4,1198.3,7.8688533]
[1672630063996,9.38606581,1198.4,1198.3,7.8688533]
[1672630074409,4.38606581,1198.4,1198.3,7.8688533]
[1672630074619,4.38379886,1198.4,1198.3,7.8688533]
[1672630076388,4.38379886,1198.4,1198.3,8.70973483]
[1672630078610,4.38379886,1198.4,1198.3,8.70752146]
[1672630082433,9.38379886,1198.4,1198.3,8.70752146]
[1672630082745,9.38606581,1198.4,1198.3,8.70752146]
[1672630088381,4.38606581,1198.4,1198.3,8.70752146]
[1672630088591,4.38579886,1198.4,1198.3,8.70552146]
[1672630088806,4.38379886,1198.4,1198.3,8.70752146]
[1672630089679,9.38379886,1198.4,1198.3,8.70752146]
[1672630089850,9.38606581,1198.4,1198.3,8.70752146]
[1672630096077,4.38606581,1198.4,1198.3,8.70752146]
[1672630096268,4.38379886,1198.4,1198.3,8.70752146]
[1672630096493,9.38579886,1198.4,1198.3,8.70552146]
[1672630096710,9.38606581,1198.4,1198.3,8.70752146]
[1672630102185,9.38606581,1198.4,1198.3,8.70405089]
[1672630102551,4.38606581,1198.4,1198.3,8.70405089]
[1672630102761,4.38379886,1198.4,1198.3,8.70405089]
[1672630103636,9.38379886,1198.4,1198.3,8.70405089]
[1672630103841,9.38606581,1198.4,1198.3,8.70405089]
[1672630104693,9.38606581,1198.4,1198.3,10.79605089]
[1672630108079,9.38606581,1198.4,1198.3,6.66212997]
[1672630109709,4.38606581,1198.4,1198.3,6.66212997]
[1672630109919,4.38379886,1198.4,1198.3,6.66212997]
[1672630110463,9.38379886,1198.4,1198.3,6.66212997]
[1672630110722,9.38606581,1198.4,1198.3,6.66212997]
[1672630116606,5.18255897,1198.4,1198.3,6.66212997]
[1672630116909,10.18255897,1198.4,1198.3,6.66212997]
[1672630119541,5.00226695,1198.4,1198.3,6.66212997]
[1672630119907,10.18255897,1198.4,1198.3,6.66212997]
[1672630120364,5.18255897,1198.4,1198.3,6.66212997]
[1672630121487,0.00226695,1198.4,1198.3,6.66212997]
[1672630121694,5.18255897,1198.5,1198.3,6.66212997]
[1672630121914,6.56949136,1198.5,1198.4,3.0]
[1672630122274,11.56949136,1198.5,1198.4,3.25238382]
[1672630122817,6.56949136,1198.5,1198.4,3.24862482]
[1672630123895,11.56949136,1198.5,1198.4,3.24862482]
[1672630127275,11.57149136,1198.5,1198.4,3.24862482]
[1672630127546,11.56949136,1198.5,1198.4,3.24862482]
[1672630129918,6.56949136,1198.5,1198.4,3.24862482]
[1672630130898,11.56949136,1198.5,1198.4,3.24862482]
[1672630136965,6.56949136,1198.5,1198.4,3.24862482]
[1672630137837,11.56949136,1198.5,1198.4,3.24862482]
[1672630143888,6.56949136,1198.5,1198.4,3.24862482]
[1672630144891,11.56949136,1198.5,1198.4,3.24862482]
[1672630146414,11.56949136,1198.5,1198.4,3.24541904]
[1672630150895,6.56949136,1198.5,1198.4,3.24541904]
[1672630151787,11.56949136,1198.5,1198.4,3.24541904]
[1672630156783,6.38919934,1198.5,1198.4,3.24541904]
[1672630157141,11.57151492,1198.5,1198.4,3.24541904]
[1672630157353,6.38919934,1198.5,1198.4,3.24541904]
[1672630157624,11.57163028,1198.5,1198.4,3.24541904]
[1672630157929,6.57163028,1198.5,1198.4,3.24541904]
[1672630158977,11.57163028,1198.5,1198.4,3.24541904]
[1672630162449,10.18469789,1198.5,1198.4,3.24541904]
[1672630164979,5.18469789,1198.5,1198.4,3.24541904]
[1672630165989,10.18469789,1198.5,1198.4,3.24541904]
[1672630167125,10.18469789,1198.5,1198.4,3.24160716]
[1672630172116,5.18469789,1198.5,1198.4,3.24160716]
[1672630172947,10.18469789,1198.5,1198.4,3.24160716]
[1672630178807,11.83124417,1198.5,1198.4,3.24160716]
[1672630178973,6.83124417,1198.5,1198.4,3.24160716]
[1672630180044,6.64881323,1198.5,1198.4,3.24160716]
[1672630180178,12.86757814,1198.5,1198.4,3.25238382]
[1672630182017,6.64881323,1198.5,1198.4,3.25238382]
[1672630183580,12.86757814,1198.5,1198.4,0.25238382]
[1672630187457,6.64881323,1198.5,1198.4,0.25238382]
[1672630188968,12.86757814,1198.5,1198.4,0.25238382]
[1672630189184,12.86757814,1198.5,1198.3,3.41086462]
[1672630189394,10.18157213,1198.4,1198.3,3.40809733]
[1672630189578,5.18383908,1198.4,1198.3,3.40809733]
[1672630189750,4.93145526,1198.4,1198.3,6.40809733]
[1672630189956,4.92918831,1198.4,1198.3,3.72648115]
[1672630190172,4.92918831,1198.4,1198.3,3.66048115]
[1672630190649,9.92918831,1198.4,1198.3,3.66048115]
[1672630190963,9.93145526,1198.4,1198.3,3.66048115]
[1672630196645,4.93145526,1198.4,1198.3,3.66048115]
[1672630196787,4.92918831,1198.4,1198.3,3.66048115]
[1672630197668,9.92918831,1198.4,1198.3,3.66048115]
[1672630197875,9.93145526,1198.4,1198.3,3.66048115]
[1672630202467,9.93145526,1198.4,1198.3,5.65080755]
[1672630202714,9.93145526,1198.4,1198.3,5.71680755]
[1672630203566,4.93145526,1198.4,1198.3,5.71680755]
[1672630203780,4.92918831,1198.4,1198.3,5.71680755]
[1672630204709,9.92918831,1198.4,1198.3,5.71680755]
[1672630204886,9.93145526,1198.4,1198.3,5.71680755]
[1672630210620,4.93145526,1198.4,1198.3,5.71680755]
[1672630210937,4.92918831,1198.4,1198.3,5.71680755]
[1672630211729,9.92918831,1198.4,1198.3,5.71680755]
[1672630211938,9.93145526,1198.4,1198.3,5.71312514]
[1672630213635,5.00226695,1198.4,1198.3,5.71312514]
[1672630214197,9.93145526,1198.4,1198.3,5.71312514]
[1672630215518,5.00226695,1198.4,1198.3,5.71312514]
[1672630217618,0.00226695,1198.4,1198.3,5.71312514]
[1672630217806,4.92918831,1198.5,1198.3,5.71312514]
[1672630218018,6.05041033,1198.5,1198.3,5.71312514]
[1672630218233,6.05267728,1198.5,1198.3,5.71312514]
[1672630218652,5.0,1198.4,1198.3,5.71312514]
[1672630218863,5.00226695,1198.4,1198.3,5.71312514]
[1672630220364,9.93145526,1198.4,1198.3,5.71312514]
[1672630224772,4.93145526,1198.4,1198.3,5.71312514]
[1672630224947,4.92918831,1198.4,1198.3,5.71312514]
[1672630225815,9.92918831,1198.4,1198.3,5.71312514]
[1672630226026,9.93145526,1198.4,1198.3,5.71312514]
[1672630231840,4.93145526,1198.4,1198.3,5.71312514]
[1672630231987,4.92918831,1198.4,1198.3,5.71312514]
[1672630232745,9.92918831,1198.4,1198.3,5.71312514]
[1672630233088,5.00226695,1198.4,1198.3,5.71312514]
[1672630234926,9.38876057,1198.4,1198.3,5.71312514]
[1672630235135,9.38876057,1198.4,1198.3,12.83860599]
[1672630235346,3.76172276,1198.4,1198.3,12.8346548]
[1672630235626,3.75945581,1198.4,1198.3,12.8346548]
[1672630236469,3.75945581,1198.4,1198.3,9.05430596]
[1672630241496,3.75945581,1198.4,1198.3,12.8536548]
[1672630241732,3.75945581,1198.4,1198.3,9.05430596]
[1672630242299,3.82372276,1198.5,1198.3,9.05430596]
[1672630242554,3.75945581,1198.4,1198.3,12.8536548]
[1672630242936,0.06426695,1198.5,1198.4,3.0]
[1672630243147,3.75450718,1198.5,1198.4,6.0]
[1672630243352,3.75450718,1198.5,1198.4,8.2037493]
[1672630243811,12.13156057,1198.6,1198.4,8.2037493]
[1672630244002,5.0,1198.5,1198.4,8.2037493]
[1672630244227,5.00226695,1198.5,1198.4,8.2037493]
[1672630245265,8.75613475,1198.5,1198.4,8.2037493]
[1672630249841,8.75613475,1198.5,1198.4,5.2037493]
[1672630249981,3.75613475,1198.5,1198.4,3.31838382]
[1672630250206,3.7538678,1198.5,1198.4,3.25238382]
[1672630250874,3.7538678,1198.5,1198.4,6.25238382]
[1672630251085,8.7558678,1198.5,1198.4,6.31638382]
[1672630251236,8.75613475,1198.5,1198.4,3.31838382]
[1672630251609,8.75613475,1198.5,1198.4,3.25238382]
[1672630254924,8.75239194,1198.5,1198.4,6.25238382]
[1672630255135,8.75239194,1198.5,1198.4,6.31838382]
[1672630255928,5.00226695,1198.5,1198.4,3.31838382]
[1672630256140,5.00226695,1198.5,1198.4,3.25238382]
[1672630256775,5.00226695,1198.5,1198.4,7.5377493]
[1672630256956,0.00226695,1198.5,1198.4,7.6037493]
[1672630257163,12.06956057,1198.6,1198.4,7.6037493]
[1672630257352,12.06956057,1198.6,1198.5,6.0]
[1672630257564,4.38876057,1198.6,1198.5,11.22572377]
[1672630257782,5.0,1198.6,1198.5,13.57310759]
[1672630258130,5.0,1198.6,1198.5,9.77375875]
[1672630258131,5.00226695,1198.6,1198.5,9.77375875]
[1672630258353,5.00226695,1198.6,1198.5,13.57310759]
[1672630258655,0.00226695,1198.6,1198.5,9.77375875]
[1672630258844,4.38649362,1198.7,1198.5,9.77375875]
[1672630259024,4.38649362,1198.7,1198.5,13.57310759]
[1672630259481,12.65046057,1198.8,1198.5,13.57310759]
[1672630259692,4.38649362,1198.7,1198.5,13.57310759]
[1672630260076,12.65046057,1198.8,1198.5,13.57310759]
[1672630260280,4.38649362,1198.7,1198.5,9.77375875]
[1672630260962,4.38649362,1198.7,1198.5,13.57310759]
[1672630260963,3.75104991,1198.6,1198.5,13.57310759]
[1672630261281,3.75104991,1198.6,1198.5,9.77375875]
[1672630261662,3.75104991,1198.6,1198.5,13.57310759]
[1672630261879,3.75104991,1198.6,1198.5,9.77375875]
[1672630267388,3.75304991,1198.6,1198.5,9.77175875]
[1672630267580,3.75104991,1198.6,1198.5,9.77375875]
[1672630268006,3.75104991,1198.6,1198.5,6.77375875]
[1672630275271,3.75104991,1198.6,1198.5,6.77119433]
[1672630284208,4.45076057,1198.7,1198.5,6.77119433]
[1672630284474,4.38649362,1198.7,1198.5,8.77359247]
[1672630289166,3.75521715,1198.6,1198.5,8.77359247]
[1672630290315,3.75521715,1198.6,1198.5,6.67859247]
[1672630293502,4.45076057,1198.7,1198.5,6.67859247]
[1672630293708,4.38649362,1198.7,1198.5,6.67859247]
[1672630295387,4.38649362,1198.6,1198.5,6.67859247]
[1672630296651,4.38649362,1198.6,1198.5,6.67634069]
[1672630315917,3.75934521,1198.6,1198.5,6.67634069]
[1672630317281,4.38649362,1198.6,1198.5,6.67361811]
[1672630321853,4.45076057,1198.7,1198.5,6.67361811]
[1672630322063,13.12888831,1198.8,1198.5,6.67361811]
[1672630322064,4.38649362,1198.6,1198.5,6.67361811]
[1672630322320,4.38649362,1198.6,1198.5,5.31324318]
[1672630324323,4.45076057,1198.7,1198.5,5.31324318]
[1672630324534,4.38649362,1198.7,1198.5,5.31324318]
[1672630324709,4.38649362,1198.7,1198.5,6.86273893]
[1672630325537,3.75847596,1198.6,1198.5,6.86273893]
[1672630325745,4.45076057,1198.7,1198.5,6.86273893]
[1672630325964,3.75844394,1198.6,1198.5,6.86273893]
[1672630326180,4.45076057,1198.7,1198.5,6.86273893]
[1672630326390,3.75844173,1198.6,1198.5,6.86273893]
[1672630329223,3.75841617,1198.6,1198.5,6.86273893]
[1672630334660,3.75449586,1198.6,1198.5,6.86273893]
[1672630344408,4.45076057,1198.7,1198.5,6.86273893]
[1672630344677,4.38649362,1198.7,1198.5,6.86273893]
[1672630346719,3.75767797,1198.6,1198.5,6.86273893]
[1672630346933,4.38649362,1198.6,1198.5,6.86273893]
[1672630347882,4.99345526,1198.7,1198.5,6.86273893]
[1672630348091,4.99345526,1198.7,1198.5,5.31324318]
[1672630348092,4.38339528,1198.6,1198.5,5.31324318]
[1672630348646,9.38339528,1198.6,1198.5,5.31324318]
[1672630348889,9.38566223,1198.6,1198.5,5.31324318]
[1672630354752,4.38566223,1198.6,1198.5,5.31324318]
[1672630354966,4.38339528,1198.6,1198.5,5.31324318]
[1672630358714,4.38339528,1198.6,1198.5,5.30924503]
[1672630359781,4.37986948,1198.6,1198.5,8.30924503]
[1672630361356,4.37986948,1198.6,1198.5,5.30924503]
[1672630362778,4.92918831,1198.6,1198.5,5.30924503]
[1672630362913,7.92918831,1198.6,1198.5,2.32078196]
[1672630363300,4.93145526,1198.6,1198.5,2.25478196]
[1672630363445,4.92918831,1198.6,1198.5,2.25478196]
[1672630363670,9.92918831,1198.6,1198.5,2.25478196]
[1672630364016,9.93145526,1198.6,1198.5,2.25478196]
[1672630366541,5.00226695,1198.6,1198.5,2.25478196]
[1672630367924,9.38194481,1198.6,1198.5,2.25478196]
[1672630368750,5.00226695,1198.6,1198.5,2.25478196]
[1672630369962,9.38194399,1198.6,1198.5,2.25478196]
[1672630371206,4.38194399,1198.6,1198.5,2.25478196]
[1672630371426,4.37967704,1198.6,1198.5,2.25478196]
[1672630372385,7.08145526,1198.7,1198.5,2.25478196]
[1672630372537,9.44061728,1198.7,1198.5,2.25478196]
[1672630372746,9.37926758,1198.6,1198.5,2.25478196]
[1672630373079,9.38153453,1198.6,1198.5,2.25478196]
[1672630378814,4.38153453,1198.6,1198.5,2.25478196]
[1672630378941,4.37926758,1198.6,1198.5,2.25478196]
[1672630379151,9.37926758,1198.6,1198.5,2.25478196]
[1672630379366,9.38153453,1198.6,1198.5,2.25478196]
[1672630380978,9.38153453,1198.6,1198.5,2.25224045]
[1672630381169,6.89045544,1198.6,1198.5,2.25224045]
[1672630381520,11.27124588,1198.6,1198.5,2.25224045]
[1672630383518,6.89045544,1198.6,1198.5,2.25224045]
[1672630383733,11.27166127,1198.6,1198.5,2.25224045]
[1672630384263,6.89045544,1198.6,1198.5,2.25224045]
[1672630385138,6.27219665,1198.6,1198.5,2.25224045]
[1672630385345,4.38400816,1198.6,1198.5,2.25224045]
[1672630385619,4.38174121,1198.6,1198.5,2.25224045]
[1672630385989,4.92918831,1198.6,1198.5,2.25224045]
[1672630386191,9.92918831,1198.6,1198.5,2.25224045]
[1672630386519,5.00226695,1198.6,1198.5,2.25224045]
[1672630387156,9.93145526,1198.6,1198.5,2.25224045]
[1672630394648,12.00359348,1198.6,1198.5,2.25224045]
[1672630399706,9.93145526,1198.6,1198.5,2.25224045]
[1672630399906,9.93145526,1198.6,1198.5,1.99985663]
[1672630400123,9.38616791,1198.6,1198.5,2.25224045]
[1672630403334,9.38616791,1198.6,1198.5,2.24943989]
[1672630404129,5.00226695,1198.6,1198.5,2.24943989]
[1672630404260,9.38660737,1198.6,1198.5,2.24943989]
[1672630407424,4.38660737,1198.6,1198.5,2.24943989]
[1672630407631,4.38434042,1198.6,1198.5,2.24943989]
[1672630408506,9.38434042,1198.6,1198.5,2.24943989]
[1672630408730,9.38660737,1198.6,1198.5,2.24943989]
[1672630414904,5.00226695,1198.6,1198.5,3.46091876]
[1672630415129,8.75867717,1198.6,1198.5,6.46091876]
[1672630415444,9.38660737,1198.6,1198.5,6.52691876]
[1672630420927,5.00226695,1198.6,1198.5,6.52691876]
[1672630421250,0.00226695,1198.6,1198.5,6.52691876]
[1672630421414,4.38434042,1198.7,1198.5,6.52691876]
[1672630421621,4.38434042,1198.7,1198.6,6.0]
[1672630421855,15.27615526,1198.8,1198.6,6.066]
[1672630422028,5.0,1198.7,1198.6,3.066]
[1672630422242,9.38353006,1198.7,1198.6,2.00682936]
[1672630422478,9.38353006,1198.7,1198.6,5.00682936]
[1672630422695,5.00226695,1198.7,1198.6,5.07282936]
[1672630422916,9.38349451,1198.7,1198.6,5.07282936]
[1672630427490,9.38349451,1198.7,1198.6,5.48476806]
[1672630428178,4.38349451,1198.7,1198.6,5.48476806]
[1672630428352,4.38122756,1198.7,1198.6,5.48217825]
[1672630429140,9.38122756,1198.7,1198.6,5.48217825]
[1672630429345,9.38349451,1198.7,1198.6,5.48217825]
[1672630431933,5.00226695,1198.7,1198.6,5.48217825]
[1672630433448,9.93145526,1198.7,1198.6,5.48217825]
[1672630435131,4.93145526,1198.7,1198.6,5.48217825]
[1672630435347,4.92918831,1198.7,1198.6,5.48217825]
[1672630436016,9.92918831,1198.7,1198.6,5.48217825]
[1672630436229,9.93145526,1198.7,1198.6,5.48217825]
[1672630438401,5.00226695,1198.7,1198.6,5.48217825]
[1672630439509,9.93145526,1198.7,1198.6,5.48217825]
[1672630444713,4.93145526,1198.7,1198.6,5.48217825]
[1672630445016,4.92918831,1198.7,1198.6,5.48217825]
[1672630445597,9.92918831,1198.7,1198.6,5.48217825]
[1672630445808,9.93145526,1198.7,1198.6,5.48217825]
[1672630447318,5.00226695,1198.7,1198.6,5.48217825]
[1672630447483,9.38712043,1198.7,1198.6,5.48217825]
[1672630449114,5.00226695,1198.7,1198.6,5.48217825]
[1672630450026,9.38706564,1198.7,1198.6,5.48217825]
[1672630451602,4.38706564,1198.7,1198.6,5.48217825]
[1672630451810,9.38479869,1198.7,1198.6,5.48217825]
[1672630452001,9.38706564,1198.7,1198.6,5.48217825]
[1672630452943,9.38706564,1198.7,1198.6,5.47902608]
[1672630453403,9.93145526,1198.7,1198.6,5.47902608]
[1672630453689,5.00226695,1198.7,1198.6,5.47902608]
[1672630455665,9.38663702,1198.7,1198.6,5.47902608]
[1672630455785,9.38666025,1198.7,1198.6,5.47902608]
[1672630455995,5.00226695,1198.7,1198.6,5.47902608]
[1672630456313,9.3866583,1198.7,1198.6,5.47902608]
[1672630456576,5.00226695,1198.7,1198.6,5.47902608]
[1672630456956,9.38663084,1198.7,1198.6,5.47902608]
[1672630457195,5.00226695,1198.7,1198.6,5.47902608]
[1672630460101,9.38652887,1198.7,1198.6,5.47902608]
[1672630467205,4.38652887,1198.7,1198.6,5.47902608]
[1672630467394,4.38426192,1198.7,1198.6,5.47902608]
[1672630468012,9.38426192,1198.7,1198.6,5.47902608]
[1672630468319,9.38652887,1198.7,1198.6,5.47902608]
[1672630469881,9.38624325,1198.7,1198.6,5.47902608]
[1672630470091,5.00226695,1198.7,1198.6,5.47902608]
[1672630470777,9.3861418,1198.7,1198.6,5.47902608]
[1672630474205,5.00226695,1198.7,1198.6,5.47902608]
[1672630474624,9.93145526,1198.7,1198.6,5.47902608]
[1672630475789,9.93145526,1198.7,1198.6,5.47547133]
[1672630476351,4.93145526,1198.7,1198.6,5.47547133]
[1672630476510,4.92918831,1198.7,1198.6,5.47547133]
[1672630477218,9.92918831,1198.7,1198.6,5.47547133]
[1672630477424,9.93145526,1198.7,1198.6,5.47547133]
[1672630477881,9.93145526,1198.7,1198.6,2.47547133]
[1672630478090,9.93145526,1198.7,1198.6,2.40947133]
[1672630479371,9.38710572,1198.7,1198.6,2.40947133]
[1672630479564,5.00226695,1198.7,1198.6,2.40947133]
[1672630480948,9.93145526,1198.7,1198.6,2.40947133]
[1672630483197,4.93145526,1198.7,1198.6,2.40947133]
[1672630483414,13.19315526,1198.8,1198.6,2.40947133]
[1672630483564,4.92918831,1198.7,1198.6,2.40947133]
[1672630484831,9.92918831,1198.7,1198.6,2.40947133]
[1672630485028,9.93145526,1198.7,1198.6,2.40947133]
[1672630487303,5.00226695,1198.7,1198.6,2.40947133]
[1672630490916,0.00226695,1198.7,1198.6,2.40947133]
[1672630491230,5.0,1198.7,1198.6,2.40947133]
[1672630491444,5.00226695,1198.7,1198.6,2.40947133]
[1672630493953,9.38765197,1198.7,1198.6,2.40947133]
[1672630494309,5.00226695,1198.7,1198.6,7.15728335]
[1672630494470,5.00226695,1198.7,1198.6,10.22328335]
[1672630494681,5.00226695,1198.7,1198.6,7.22328335]
[1672630495156,9.38765197,1198.7,1198.6,7.22328335]
[1672630497202,9.38765197,1198.7,1198.6,7.2201785]
[1672630501557,5.00226695,1198.7,1198.6,7.2201785]
[1672630501821,0.00226695,1198.7,1198.6,7.2201785]
[1672630502050,12.58735197,1198.8,1198.6,7.2201785]
[1672630502266,12.58735197,1198.8,1198.7,3.0]
[1672630502612,4.93145526,1198.8,1198.7,3.0]
[1672630502825,4.92918831,1198.8,1198.7,3.0]
[1672630503859,9.92918831,1198.8,1198.7,3.0]
[1672630504192,5.00226695,1198.8,1198.7,3.0]
[1672630504558,9.93145526,1198.8,1198.7,3.0]
[1672630506198,5.00226695,1198.8,1198.7,3.0]
[1672630507573,9.38500475,1198.8,1198.7,3.0]
[1672630507942,5.00226695,1198.8,1198.7,3.0]
[1672630510562,5.00226695,1198.8,1198.7,0.37775715]
[1672630511001,9.38461811,1198.8,1198.7,0.37775715]
[1672630512870,9.38493384,1198.8,1198.7,3.37775715]
[1672630513082,9.38493384,1198.8,1198.7,0.63014097]
[1672630517499,8.75757872,1198.8,1198.7,10.67255859]
[1672630517874,3.75899604,1198.8,1198.7,14.2307781]
[1672630518177,3.75699604,1198.8,1198.7,14.2287781]
[1672630518397,3.75499604,1198.8,1198.7,14.2307781]
[1672630518786,3.75699604,1198.8,1198.7,14.2287781]
[1672630518980,3.75499604,1198.8,1198.7,14.2307781]
[1672630521781,3.75499604,1198.8,1198.7,14.39452235]
[1672630525215,3.75499604,1198.8,1198.7,10.58796587]
[1672630525422,3.75499604,1198.8,1198.7,8.50096587]
[1672630525639,3.75499604,1198.8,1198.7,5.00874636]
[1672630527886,3.75499604,1198.8,1198.7,8.81530284]
[1672630528109,3.75499604,1198.8,1198.7,5.00874636]
[1672630530530,3.75499604,1198.8,1198.7,7.02437451]
[1672630534152,3.75499604,1198.8,1198.7,7.02233557]
[1672630536616,3.70499604,1198.8,1198.7,8.35561865]
[1672630539210,5.17155996,1198.9,1198.7,8.35561865]
[1672630539421,4.38235116,1198.8,1198.7,8.35561865]
[1672630541200,5.17155996,1198.9,1198.7,8.35561865]
[1672630541378,5.10955996,1198.9,1198.7,8.35561865]
[1672630542369,3.75443938,1198.8,1198.7,8.35561865]
[1672630542739,3.7544499,1198.8,1198.7,8.35561865]
[1672630542945,5.17155996,1198.9,1198.7,8.35561865]
[1672630543098,3.75459351,1198.8,1198.7,8.35561865]
[1672630543520,5.17155996,1198.9,1198.7,8.35561865]
[1672630543769,3.75460388,1198.8,1198.7,8.35561865]
[1672630543995,5.17155996,1198.9,1198.7,8.35561865]
[1672630544208,3.75457433,1198.8,1198.7,8.35561865]
[1672630544381,5.17155996,1198.9,1198.7,8.35561865]
[1672630544741,5.10955996,1198.9,1198.7,8.35561865]
[1672630545853,5.05955996,1198.9,1198.7,8.35561865]
[1672630546625,3.75526369,1198.8,1198.7,8.35561865]
[1672630546842,4.38235116,1198.8,1198.7,8.35561865]
[1672630547357,0.7392088,1198.9,1198.7,8.35561865]
[1672630547358,5.12155996,1198.9,1198.7,8.35561865]
[1672630547528,5.05955996,1198.9,1198.7,8.35561865]
[1672630548183,4.38235116,1198.8,1198.7,8.35561865]
[1672630550512,5.12155996,1198.9,1198.7,8.35561865]
[1672630550879,5.05955996,1198.9,1198.7,8.35561865]
[1672630552239,4.38235116,1198.8,1198.7,8.35561865]
[1672630556822,4.38235116,1198.8,1198.7,12.16217513]
[1672630556823,3.75765392,1198.8,1198.7,12.16217513]
[1672630557051,3.75765392,1198.8,1198.7,8.35561865]
[1672630557255,3.75765392,1198.8,1198.7,12.16217513]
[1672630557470,3.75756342,1198.8,1198.7,12.16217513]
[1672630557681,3.75756342,1198.8,1198.7,8.35561865]
[1672630558099,5.12155996,1198.9,1198.7,8.35561865]
[1672630558288,5.05955996,1198.9,1198.7,8.35561865]
[1672630558503,5.05955996,1198.9,1198.7,12.16217513]
[1672630560195,3.75794698,1198.8,1198.7,12.16217513]
[1672630560423,3.75794698,1198.8,1198.7,8.35561865]
[1672630561441,5.12155996,1198.9,1198.7,8.35561865]
[1672630561651,5.05955996,1198.9,1198.7,8.35561865]
[1672630561863,4.38235116,1198.8,1198.7,8.35561865]
[1672630562071,4.25642575,1198.8,1198.7,8.35561865]
[1672630564552,0.7392088,1198.9,1198.7,8.35561865]
[1672630564775,0.6732088,1198.9,1198.7,8.35561865]
[1672630567070,4.38463126,1198.8,1198.7,8.35561865]
[1672630568756,4.38463126,1198.8,1198.7,2.62109061]
[1672630569067,4.38463126,1198.8,1198.7,2.55509061]
[1672630569858,4.38463126,1198.8,1198.7,2.80747443]
[1672630574178,4.38463126,1198.8,1198.7,5.80747443]
[1672630574503,4.38463126,1198.8,1198.7,7.02233557]
[1672630574712,4.38463126,1198.8,1198.7,8.809238]
[1672630582923,4.38463126,1198.8,1198.7,8.80658479]
[1672630593434,3.75815246,1198.8,1198.7,8.80658479]
[1672630594164,5.12384006,1198.9,1198.7,8.80658479]
[1672630594523,4.38463126,1198.8,1198.7,8.80658479]
[1672630596694,5.12384006,1198.9,1198.7,8.80658479]
[1672630596886,5.06184006,1198.9,1198.7,8.80658479]
[1672630597096,3.75802936,1198.8,1198.7,8.80658479]
[1672630606162,3.75802936,1198.8,1198.7,8.80309391]
[1672630614458,3.75802936,1198.8,1198.7,17.14546391]
[1672630615243,3.75802936,1198.8,1198.7,25.48783391]
[1672630616344,3.75802936,1198.8,1198.7,17.14546391]
[1672630617037,3.75802936,1198.8,1198.7,25.48783391]
[1672630617404,3.75802936,1198.8,1198.7,8.80309391]
[1672630624675,3.75802936,1198.8,1198.7,10.89009391]
[1672630630693,3.75802936,1198.8,1198.7,10.88735177]
[1672630639477,3.75802936,1198.8,1198.7,14.92390825]
[1672630639688,3.75480029,1198.8,1198.7,19.45972177]
[1672630639957,3.75480029,1198.8,1198.7,14.67152443]
[1672630640168,3.75480029,1198.8,1198.7,11.11735177]
[1672630640322,3.75480029,1198.8,1198.7,14.92390825]